fUSD/lending_fUSD_20260118
["ID","MTS","AMOUNT","RATE_DAILY","PERIOD"]
[402663334,1768768241032,-850.58577758,0.00016438,2]
[402663335,1768768241041,-850.58577758,0.00016438,2]
[402663336,1768768241052,-850.58577758,0.00016438,2]
[402663337,1768768241062,-850.58577758,0.00016438,2]
[402663338,1768768241072,-850.58577758,0.00016438,2]
[402663339,1768768241082,-850.58577758,0.00016438,2]
[402663340,1768768241091,-211.77117296,0.00016438,2]
[402663341,1768768241101,-600.0,0.00016516,2]
[402663342,1768768241110,-1000.0,0.00016521,2]
[402663343,1768768241119,-516.06560751,0.00016521,2]
[402663344,1768768241129,-1000.0,0.00016521,2]
[402663345,1768768241138,-489.94559639,0.00016521,2]
[402663346,1768768241149,-1000.0,0.00016521,2]
[402663347,1768768241158,-1000.0,0.00016521,2]
[402663348,1768768241168,-1001.96234831,0.00016521,2]
[402663349,1768768241177,-1000.0,0.00016521,2]
[402663350,1768768241187,-1000.0,0.00016521,2]
[402663351,1768768241196,-1000.0,0.00016521,2]
[402663352,1768768241205,-1002.20709128,0.00016521,2]
[402663353,1768768241215,-847.84,0.00016521,2]
[402663354,1768768241224,-301.03,0.00016532,2]
[402663355,1768768241234,-13005.09230286,0.0001654,2]
[402663356,1768768241243,-506.27037057,0.00016552,2]
[402663357,1768768241254,-150.0,0.00016614,2]
[402663358,1768768241263,-1000.0,0.00016684,2]
[402663359,1768768241273,-150.68169101,0.000167,2]
[402663360,1768768241283,-5534.0,0.000167,2]
[402663361,1768768241291,-166.66,0.00016712,2]
[402663362,1768768241301,-847.84,0.00016795,2]
[402663363,1768768241311,-150.0,0.000168,2]
[402663364,1768768241321,-13005.09230286,0.00016812,2]
[402663365,1768768241330,-2544.20056881,0.00016866,2]
[402663366,1768768241340,-195.0,0.00016866,2]
[402663367,1768768241349,-600.0,0.00016866,2]
[402663368,1768768241359,-5000.0,0.00016866,2]
[402663369,1768768241368,-250.0,0.00016866,2]
[402663370,1768768241377,-250.0,0.00016866,2]
[402663371,1768768241387,-300.0,0.00016866,2]
[402663372,1768768241396,-420.0,0.00016903,2]
[402663373,1768768241406,-219.0,0.00016975,2]
[402663374,1768768241415,-200.0,0.00017,6]
[402663375,1768768241425,-835.0,0.0001704,2]
[402663376,1768768241435,-483.79,0.00017041,2]
[402663377,1768768241704,-166.66,0.00017043,2]
[402663378,1768768241715,-847.84,0.00017068,2]
[402663379,1768768241724,-504.10221386,0.00017068,2]
[402663380,1768768241734,-858.08598744,0.00017068,2]
[402663381,1768768241744,-1000.0,0.00017068,2]
[402663382,1768768241754,-1500.0,0.00017068,2]
[402663383,1768768241763,-1500.0,0.00017068,2]
[402663384,1768768241773,-1500.0,0.00017068,2]
[402663385,1768768241782,-500.0,0.00017068,2]
[402663386,1768768241791,-13005.09230286,0.00017084,2]
[402663387,1768768241800,-182.92,0.0001709,2]
[402663388,1768768241810,-2337.76615348,0.00017099,2]
[402663389,1768768241819,-1248.69114802,0.00017099,2]
[402663390,1768768241829,-7853.68022658,0.00017099,2]
[402663391,1768768241838,-285.70443904,0.00017099,2]
[402663392,1768768241849,-322.6107,0.00017099,2]
[402663393,1768768241858,-174.61919141,0.00017099,2]
[402663394,1768768241868,-1999.0,0.00017099,2]
[402663395,1768768241877,-250.0,0.00017099,2]
[402663396,1768768241887,-250.0,0.00017099,2]
[402663397,1768768241897,-250.0,0.00017099,2]
[402663398,1768768241906,-250.0,0.00017099,2]
[402663399,1768768241916,-250.0,0.00017099,2]
[402663400,1768768241927,-250.0,0.00017099,2]
[402663401,1768768241936,-250.0,0.00017099,2]
[402663402,1768768241946,-250.0,0.00017099,2]
[402663403,1768768241955,-250.0,0.00017099,2]
[402663404,1768768241964,-250.0,0.00017099,2]
[402663405,1768768241974,-1500.0,0.00017099,2]
[402663406,1768768241983,-250.0,0.00017099,2]
[402663407,1768768241993,-1500.0,0.00017099,2]
[402663408,1768768242003,-1500.0,0.00017099,2]
[402663409,1768768242012,-1500.0,0.00017099,2]
[402663410,1768768242022,-1500.0,0.00017099,2]
[402663411,1768768242031,-1500.0,0.00017099,2]
[402663412,1768768242040,-620.0,0.00017099,2]
[402663413,1768768242050,-1500.0,0.00017099,2]
[402663414,1768768242060,-1615.28157897,0.00017099,2]
[402663415,1768768242071,-1000.0,0.00017099,2]
[402663416,1768768242080,-1000.0,0.00017099,2]
[402663417,1768768242089,-1000.0,0.00017099,2]
[402663418,1768768242099,-151.0,0.00017099,2]
[402663419,1768768242108,-1000.0,0.00017099,2]
[402663420,1768768242117,-1000.0,0.00017099,2]
[402663421,1768768242127,-151.0,0.00017099,2]
[402663422,1768768242136,-574.12855637,0.00017099,2]
[402663423,1768768242146,-1000.0,0.00017099,2]
[402663424,1768768242155,-151.0,0.00017099,2]
[402663425,1768768242165,-1000.0,0.00017099,2]
[402663426,1768768242174,-151.0,0.00017099,2]
[402663427,1768768242183,-1000.0,0.00017099,2]
[402663428,1768768242193,-151.0,0.00017099,2]
[402663429,1768768242202,-825.46400366,0.00017099,2]
[402663430,1768768242211,-151.0,0.00017099,2]
[402663431,1768768242221,-151.0,0.00017099,2]
[402663432,1768768242231,-151.0,0.00017099,2]
[402663433,1768768242240,-151.0,0.00017099,2]
[402663434,1768768242249,-151.0,0.00017099,2]
[402663435,1768768242259,-151.0,0.00017099,2]
[402663436,1768768242268,-1513.3043711,0.00017099,2]
[402663437,1768768242277,-150.68169101,0.000171,2]
[402663438,1768768242286,-5533.0,0.000171,3]
[402663439,1768768242296,-400.0,0.000171,6]
[402663440,1768768242305,-700.0,0.000172,6]
[402663441,1768768242315,-200.0,0.00017213,2]
[402663442,1768768242325,-1000.0,0.0001726,2]
[402663443,1768768242335,-200.0,0.00017291,2]
[402663444,1768768242344,-900.0,0.000173,6]
[402663445,1768768242354,-847.84,0.00017342,2]
[402663446,1768768242364,-13005.09230286,0.00017356,2]
[402663448,1768768242374,-835.0,0.0001736,2]
[402663450,1768768242384,-500.0,0.0001737,2]
[402663451,1768768242393,-166.66,0.00017374,2]
[402663452,1768768242403,-150.0,0.000174,2]
[402663453,1768768242412,-5533.0,0.000174,5]
[402663454,1768768242422,-1200.0,0.000174,6]
[402663455,1768768242432,-219.0,0.00017424,2]
[402663456,1768768242441,-209.7,0.00017451,2]
[402663457,1768768242451,-150.68169101,0.000175,2]
[402663458,1768768242460,-200.0,0.000175,6]
[402663459,1768768242470,-209.7,0.00017501,2]
[402663460,1768768242479,-1000.0,0.00017534,2]
[402663461,1768768242488,-209.7,0.00017551,2]
[402663462,1768768242499,-200.0,0.00017556,2]
[402663463,1768768242509,-219.0,0.00017578,2]
[402663464,1768768242519,-11016.12629742,0.00017599,2]
[402663465,1768768242528,-200.0,0.000176,6]
[402663466,1768768242538,-209.7,0.00017601,2]
[402663467,1768768242548,-847.84,0.00017616,2]
[402663468,1768768242558,-1000.0,0.00017616,2]
[402663469,1768768242568,-1000.0,0.00017616,2]
[402663470,1768768242578,-1699.70688493,0.00017616,2]
[402663472,1768768242588,-13005.09230286,0.00017628,2]
[402663473,1768768242598,-11016.12629733,0.00017632,2]
[402663475,1768768242608,-1612.94477692,0.0001764,2]
[402663478,1768768242617,-181.08010149,0.00017647,2]
[402663479,1768768242628,-595.37131296,0.00017647,2]
[402663480,1768768242637,-209.7,0.00017651,2]
[402663481,1768768242647,-11016.12629733,0.00017666,2]
[402663482,1768768242656,-150.0,0.00017679,2]
[402663483,1768768242666,-307.0,0.0001768,2]
[402663485,1768768242675,-165.1,0.00017689,2]
[402663487,1768768242686,-219.0,0.00017693,2]
[402663488,1768768242695,-500.0,0.00017699,2]
[402663489,1768768242705,-500.0,0.00017699,2]
[402663490,1768768242714,-500.0,0.00017699,2]
[402663491,1768768242724,-202.62137386,0.00017699,2]
[402663492,1768768242734,-500.0,0.00017699,2]
[402663493,1768768242744,-500.0,0.00017699,2]
[402663494,1768768242754,-500.0,0.00017699,2]
[402663495,1768768242764,-500.0,0.00017699,2]
[402663496,1768768242774,-250.0,0.00017699,2]
[402663497,1768768242783,-713.0,0.00017699,2]
[402663498,1768768242793,-150.0,0.00017699,2]
[402663499,1768768242803,-500.0,0.00017699,2]
[402663500,1768768242812,-11016.12629733,0.00017699,2]
[402663501,1768768242822,-1000.0,0.000177,2]
[402663502,1768768242831,-200.0,0.000177,6]
[402663503,1768768242841,-209.7,0.00017701,2]
[402663504,1768768242851,-500.0,0.00017704,2]
[402663505,1768768242860,-500.0,0.00017726,7]
[402663506,1768768242870,-1000.0,0.0001773,2]
[402663507,1768768242879,-11016.12629733,0.00017733,2]
[402663508,1768768242889,-1000.0,0.00017734,2]
[402663509,1768768242899,-219.0,0.00017735,2]
[402663510,1768768242908,-1000.0,0.0001774,2]
[402663511,1768768242918,-1000.0,0.00017748,2]
[402663512,1768768242927,-1000.0,0.00017748,2]
[402663513,1768768242937,-1000.0,0.00017748,2]
[402663514,1768768242946,-1000.0,0.0001775,2]
[402663515,1768768242956,-209.7,0.0001775,2]
[402663516,1768768242965,-500.0,0.00017754,2]
[402663518,1768768242975,-500.0,0.00017754,2]
[402663519,1768768242984,-500.0,0.00017754,2]
[402663520,1768768242994,-500.0,0.00017754,2]
[402663521,1768768243003,-500.0,0.00017754,2]
[402663522,1768768243013,-500.0,0.00017754,2]
[402663523,1768768243024,-500.0,0.00017754,2]
[402663524,1768768243033,-713.0,0.00017754,2]
[402663525,1768768243044,-150.0,0.00017754,2]
[402663526,1768768243054,-500.0,0.00017754,2]
[402663527,1768768243064,-1000.0,0.00017763,2]
[402663528,1768768243073,-1000.0,0.00017772,2]
[402663529,1768768243083,-1000.0,0.00017777,2]
[402663530,1768768243092,-1000.0,0.00017783,2]
[402663531,1768768243102,-219.0,0.00017785,2]
[402663533,1768768243111,-1000.0,0.00017788,2]
[402663534,1768768243121,-182.92,0.0001779,2]
[402663535,1768768243130,-1000.0,0.00017792,2]
[402663536,1768768243139,-2000.0,0.000178,2]
[402663537,1768768243149,-209.7,0.000178,2]
[402663538,1768768243158,-1000.0,0.000178,2]
[402663539,1768768243168,-200.0,0.000178,6]
[402663540,1768768243178,-10000.0,0.00017808,2]
[402663541,1768768243188,-500.0,0.00017808,2]
[402663542,1768768243197,-1000.0,0.00017808,2]
[402663543,1768768243207,-150.0,0.00017808,2]
[402663544,1768768243217,-1000.0,0.00017808,2]
[402663545,1768768243227,-500.0,0.00017809,2]
[402663546,1768768243237,-462.0,0.00017809,2]
[402663547,1768768243247,-500.0,0.00017809,2]
[402663548,1768768243257,-500.0,0.00017809,2]
[402663549,1768768243267,-287.6507494,0.00017809,2]
[402663550,1768768243277,-579.63385986,0.00017809,2]
[402663552,1768768243286,-568.07099453,0.00017809,2]
[402663554,1768768243296,-713.0,0.00017809,2]
[402663556,1768768243305,-207.6752153,0.00017809,2]
[402663558,1768768243315,-500.0,0.00017809,2]
[402663559,1768768243325,-1000.0,0.00017812,2]
[402663561,1768768243335,-1000.0,0.00017816,2]
[402663563,1768768243344,-851.85646,0.0001782,2]
[402663565,1768768243354,-851.85647,0.0001782,2]
[402663567,1768768243363,-851.85647,0.0001782,2]
[402663569,1768768243373,-851.85646,0.0001782,2]
[402663570,1768768243383,-150.0,0.00017828,2]
[402663571,1768768243392,-150.0,0.0001783,2]
[402663572,1768768243403,-150.0,0.00017832,2]
[402663573,1768768243412,-1000.0,0.00017838,2]
[402663574,1768768243421,-1000.0,0.00017849,2]
[402663575,1768768243431,-209.7,0.0001785,2]
[402663576,1768768243441,-200.0,0.00017856,2]
[402663577,1768768243450,-500.0,0.00017863,2]
[402663578,1768768243460,-150.0,0.00017863,2]
[402663579,1768768243470,-2789.31,0.00017863,7]
[402663580,1768768243479,-2789.31,0.00017863,7]
[402663581,1768768243489,-2789.31,0.00017863,7]
[402663582,1768768243499,-2789.31,0.00017863,7]
[402663583,1768768243508,-640.47460981,0.00017863,2]
[402663584,1768768243518,-500.0,0.00017863,2]
[402663585,1768768243528,-500.0,0.00017863,2]
[402663586,1768768243538,-713.0,0.00017863,2]
[402663587,1768768243550,-500.0,0.00017863,2]
[402663588,1768768243559,-438.983,0.00017866,2]
[402663589,1768768243569,-1000.0,0.00017871,2]
[402663590,1768768243579,-1000.0,0.00017879,2]
[402663591,1768768243589,-847.90320039,0.0001789,2]
[402663592,1768768243599,-182.92,0.0001789,2]
[402663593,1768768243608,-1000.0,0.00017893,2]
[402663594,1768768243618,-150.0,0.00017894,2]
[402663595,1768768243628,-150.0,0.00017899,2]
[402663596,1768768243637,-500.0,0.00017899,2]
[402663597,1768768243647,-585.48495319,0.00017899,2]
[402663598,1768768243656,-500.0,0.00017899,2]
[402663599,1768768243666,-152.14592756,0.000179,2]
[402663600,1768768243675,-25000.0,0.000179,3]
[402663601,1768768243685,-3177.83570298,0.000179,2]
[402663602,1768768243695,-5800.0,0.000179,2]
[402663603,1768768243706,-378.39146381,0.000179,3]
[402663604,1768768243715,-209.7,0.000179,2]
[402663605,1768768243724,-769.0,0.000179,6]
[402663606,1768768243734,-13005.09230286,0.000179,2]
[402663607,1768768243745,-150.68169101,0.000179,2]
[402663608,1768768243754,-1349.0,0.000179,2]
[402663609,1768768243763,-431.43119673,0.000179,2]
[402663610,1768768243773,-431.43119673,0.000179,2]
[402663611,1768768243782,-431.43119673,0.000179,2]
[402663612,1768768243791,-431.43119673,0.000179,2]
[402663613,1768768243800,-431.43119673,0.000179,2]
[402663614,1768768243810,-431.43119673,0.000179,2]
[402663615,1768768243819,-431.43119673,0.000179,2]
[402663616,1768768243829,-431.43119673,0.000179,2]
[402663617,1768768243839,-431.43119673,0.000179,2]
[402663618,1768768243849,-431.43119673,0.000179,2]
[402663619,1768768243858,-431.43119673,0.000179,2]
[402663620,1768768243867,-431.43119673,0.000179,2]
[402663621,1768768243877,-431.43119673,0.000179,2]
[402663622,1768768243887,-431.43119673,0.000179,2]
[402663623,1768768243896,-431.43119673,0.000179,2]
[402663624,1768768243906,-431.43119673,0.000179,2]
[402663625,1768768243915,-431.43119673,0.000179,2]
[402663626,1768768243925,-431.43119673,0.000179,2]
[402663627,1768768243934,-431.43119673,0.000179,2]
[402663628,1768768243944,-4078.0,0.000179,2]
[402663629,1768768243954,-1000.0,0.00017903,2]
[402663630,1768768243963,-302.80803961,0.00017918,2]
[402663631,1768768243974,-500.0,0.00017918,2]
[402663632,1768768243983,-500.0,0.00017918,2]
[402663633,1768768243994,-713.0,0.00017918,2]
[402663634,1768768244003,-500.0,0.00017918,2]
[402663635,1768768244013,-1000.0,0.00017928,2]
[402663636,1768768244024,-1000.0,0.00017939,2]
[402663637,1768768244034,-1000.0,0.00017941,2]
[402663638,1768768244044,-1000.0,0.00017941,2]
[402663639,1768768244054,-1000.0,0.00017942,2]
[402663640,1768768244063,-1000.0,0.00017943,2]
[402663641,1768768244072,-1000.0,0.00017948,2]
[402663642,1768768244081,-209.7,0.0001795,2]
[402663643,1768768244091,-1000.0,0.00017957,2]
[402663644,1768768244101,-150.0,0.00017959,2]
[402663645,1768768244111,-1000.0,0.00017963,2]
[402663646,1768768244120,-1000.0,0.00017963,2]
[402663647,1768768244130,-1000.0,0.00017968,2]
[402663648,1768768244139,-1000.0,0.00017968,2]
[402663649,1768768244149,-1000.0,0.00017968,2]
[402663650,1768768244159,-1000.0,0.00017971,2]
[402663651,1768768244168,-1000.0,0.00017972,2]
[402663652,1768768244177,-500.0,0.00017973,2]
[402663653,1768768244186,-150.0,0.00017973,2]
[402663654,1768768244196,-501.06937491,0.00017973,2]
[402663655,1768768244206,-500.0,0.00017973,2]
[402663656,1768768244215,-500.0,0.00017973,2]
[402663657,1768768244225,-500.0,0.00017973,2]
[402663658,1768768244234,-500.0,0.00017973,2]
[402663659,1768768244244,-500.0,0.00017973,2]
[402663660,1768768244254,-500.0,0.00017973,2]
[402663661,1768768244263,-713.0,0.00017973,2]
[402663662,1768768244273,-500.0,0.00017973,2]
[402663663,1768768244283,-500.0,0.00017973,2]
[402663664,1768768244292,-150.0,0.00017973,2]
[402663665,1768768244302,-1000.0,0.00017974,2]
[402663666,1768768244312,-1000.0,0.00017976,2]
[402663667,1768768244322,-167.21,0.00017981,2]
[402663668,1768768244332,-1000.0,0.00017982,2]
[402663669,1768768244341,-996.43588471,0.00017985,2]
[402663670,1768768244351,-1000.0,0.00017987,2]
[402663671,1768768244361,-600.0,0.00017989,2]
[402663672,1768768244370,-182.92,0.0001799,2]
[402663673,1768768244380,-35111.958564,0.00017994,2]
[402663674,1768768244390,-2509.748848,0.00017994,2]
[402663675,1768768244400,-151.5115578,0.00017994,2]
[402663676,1768768244409,-7843.3522508,0.00017994,2]
[402663677,1768768244419,-1000.0,0.00017994,2]
[402663678,1768768244433,-1000.0,0.00017994,2]
[402663679,1768768244443,-1000.0,0.00017995,2]
[402663680,1768768244452,-1000.0,0.00017996,2]
[402663681,1768768244461,-1000.0,0.00017998,2]
[402663682,1768768244471,-163.41225826,0.00017999,2]
[402663683,1768768244481,-1000.0,0.00017999,2]
[402663684,1768768244491,-500.0,0.00017999,2]
[402663685,1768768244500,-500.0,0.00017999,2]
[402663686,1768768244511,-150.00000001,0.00018,2]
[402663687,1768768244520,-394859.87530007,0.00018,2]
[402663688,1768768244529,-826904.27875198,0.00018,2]
[402663689,1768768244540,-500.0,0.00018,2]
[402663690,1768768244553,-500.0,0.00018,2]
[402663691,1768768244563,-500.0,0.00018,2]
[402663692,1768768244573,-500.0,0.00018,2]
[402663693,1768768244584,-500.0,0.00018,2]
[402663694,1768768244593,-500.0,0.00018,2]
[402663695,1768768244603,-500.0,0.00018,2]
[402663696,1768768244613,-500.0,0.00018,2]
[402663697,1768768244623,-500.0,0.00018,2]
[402663698,1768768244634,-500.0,0.00018,2]
[402663699,1768768244650,-500.0,0.00018,2]
[402663700,1768768244671,-500.0,0.00018,2]
[402663701,1768768244680,-500.0,0.00018,2]
[402663702,1768768244690,-500.0,0.00018,2]
[402663703,1768768244699,-500.0,0.00018,2]
[402663704,1768768244709,-500.0,0.00018,2]
[402663705,1768768244718,-500.0,0.00018,2]
[402663706,1768768244727,-500.0,0.00018,2]
[402663707,1768768244737,-500.0,0.00018,2]
[402663708,1768768244747,-500.0,0.00018,2]
[402663709,1768768244757,-500.0,0.00018,2]
[402663710,1768768244767,-500.0,0.00018,2]
[402663711,1768768244776,-500.0,0.00018,2]
[402663712,1768768244785,-500.0,0.00018,2]
[402663713,1768768244795,-500.0,0.00018,2]
[402663714,1768768244804,-500.0,0.00018,2]
[402663715,1768768244814,-397.5,0.00018,2]
[402663716,1768768244823,-973484.66498039,0.00018,2]
[402663717,1768768244839,-16803.21350282,0.00018,2]
[402663718,1768768245317,-469.10001979,0.00016438,2]
[402663719,1768768245327,-567.84151104,0.00017766,2]
[402663721,1768768245479,-22.52673237,0.00017766,2]
[402663723,1768768246267,-500.0,0.00017766,2]
[402663724,1768768314073,2780.3815,0.00015272,2]
[402663726,1768768792171,216.23,0.00014898,2]
[402663727,1768768868018,1864.29,0.00014955,2]
[402663728,1768768876818,5534.0,0.000152,2]
[402663729,1768768899913,287.61163022,0.00015287,2]
[402663730,1768768932036,851.96,0.00012262,2]
[402663731,1768768938176,1023.0,0.00027387,120]
[402663732,1768768999512,200.0,0.00015086,2]
[402663733,1768769140187,758.39,0.00014888,2]
[402663734,1768769140395,758.39,0.00014927,2]
[402663735,1768769140602,758.39,0.00014966,2]
[402663736,1768769140849,758.39,0.00015005,2]
[402663737,1768769141055,758.39,0.00015044,2]
[402663738,1768769141263,758.39,0.00015084,2]
[402663739,1768769141482,758.39,0.00015123,2]
[402663740,1768769141699,758.39,0.00015162,2]
[402663741,1768769141923,758.39,0.00015201,2]
[402663742,1768769142128,758.39,0.0001524,2]
[402663743,1768769142398,758.39,0.00015279,2]
[402663744,1768769269357,191.7410868,0.00015228,2]
[402663745,1768769275310,191.7410868,0.00015278,2]
[402663746,1768769297137,158.87,0.00011991,2]
[402663747,1768769346133,-758.39,0.00015319,2]
[402663748,1768769346155,-250.0,0.00015322,2]
[402663749,1768769346175,-250.0,0.00015325,2]
[402663750,1768769346196,-278.0,0.00015326,2]
[402663751,1768769346215,-617.0,0.00015326,2]
[402663752,1768769346234,-300.0,0.00015326,2]
[402663753,1768769346253,-246.74931554,0.00015326,2]
[402663754,1768769346272,-300.0,0.00015326,2]
[402663755,1768769346291,-424.21815582,0.00015327,2]
[402663756,1768769346315,-1722.10642697,0.00015327,2]
[402663757,1768769346751,622.81,0.00015024,2]
[402663771,1768769431753,-250.0,0.0001532,2]
[402663772,1768769431763,-300.0,0.00015326,2]
[402663773,1768769431772,-1200.0,0.00015326,2]
[402663774,1768769431782,-179.27379233,0.00015327,2]
[402663775,1768769431793,-14581.1024807,0.00015327,2]
[402663776,1768769431802,-191.7410868,0.00015328,2]
[402663777,1768769431811,-758.39,0.00015358,2]
[402663778,1768769431820,-152.14592756,0.00015387,2]
[402663779,1768769431830,-1383.58074661,0.00015393,2]
[402663780,1768769431839,-758.39,0.00015397,2]
[402663781,1768769431848,-1000.0,0.00015426,2]
[402663782,1768769431857,-758.39,0.00015436,2]
[402663783,1768769431866,-758.39,0.00015475,2]
[402663784,1768769431875,-758.39,0.00015515,2]
[402663785,1768769431885,-500.0,0.00015528,2]
[402663786,1768769431894,-758.39,0.00015554,2]
[402663787,1768769431903,-758.39,0.00015593,2]
[402663788,1768769431913,-300.0,0.00015632,2]
[402663789,1768769431922,-758.39,0.00015632,2]
[402663790,1768769431932,-3777.71,0.00015676,2]
[402663791,1768769431941,-19615.2,0.00015756,2]
[402663792,1768769431951,-151.0,0.00015776,2]
[402663793,1768769431960,-151.0,0.00015776,2]
[402663794,1768769431969,-151.0,0.00015776,2]
[402663796,1768769431978,-151.0,0.00015776,2]
[402663798,1768769431988,-500.0,0.00015945,2]
[402663800,1768769431997,-500.0,0.00015945,2]
[402663802,1768769432006,-500.0,0.00015973,2]
[402663804,1768769432015,-500.0,0.00015973,2]
[402663805,1768769432023,-516.06560751,0.00015973,2]
[402663808,1768769432033,-500.0,0.00015973,2]
[402663809,1768769432042,-500.0,0.00015973,2]
[402663811,1768769432051,-500.0,0.00015973,2]
[402663812,1768769432062,-500.0,0.00015973,2]
[402663813,1768769432072,-500.0,0.00015973,2]
[402663814,1768769432081,-500.0,0.00015973,2]
[402663815,1768769432090,-500.0,0.00015973,2]
[402663816,1768769432099,-635.88,0.00015973,2]
[402663817,1768769432109,-500.0,0.00016,2]
[402663818,1768769432119,-500.0,0.00016,2]
[402663819,1768769432128,-500.0,0.00016,2]
[402663820,1768769432139,-220.4978299,0.00016054,2]
[402663821,1768769432149,-500.0,0.00016055,2]
[402663822,1768769432158,-500.0,0.00016055,2]
[402663823,1768769432168,-500.0,0.00016055,2]
[402663824,1768769432177,-530.89,0.00016089,2]
[402663825,1768769432186,-324.18,0.0001609,2]
[402663826,1768769432195,-500.0,0.00016109,2]
[402663827,1768769432204,-500.0,0.00016109,2]
[402663828,1768769432214,-500.0,0.0001611,2]
[402663829,1768769432223,-635.35213991,0.00016162,2]
[402663830,1768769432232,-202.62137386,0.00016164,2]
[402663831,1768769432242,-500.0,0.00016164,2]
[402663832,1768769432251,-500.0,0.00016164,2]
[402663833,1768769432261,-500.0,0.00016164,2]
[402663835,1768769432270,-500.0,0.00016164,2]
[402663837,1768769432279,-500.0,0.00016164,2]
[402663838,1768769432288,-250.0,0.00016164,2]
[402663839,1768769432298,-500.0,0.00016164,2]
[402663840,1768769432307,-500.0,0.00016164,2]
[402663841,1768769432316,-500.0,0.00016164,2]
[402663842,1768769432326,-150.0,0.000162,2]
[402663843,1768769432335,-500.0,0.00016219,2]
[402663844,1768769432345,-500.0,0.00016219,2]
[402663845,1768769432354,-500.0,0.00016219,2]
[402663846,1768769432363,-500.0,0.00016219,2]
[402663847,1768769432373,-500.0,0.00016219,2]
[402663848,1768769432382,-500.0,0.00016219,2]
[402663849,1768769432392,-500.0,0.00016219,2]
[402663850,1768769432402,-500.0,0.00016219,2]
[402663851,1768769432412,-3240.0,0.00016236,2]
[402663852,1768769432421,-635.88,0.00016247,2]
[402663853,1768769432430,-500.0,0.00016274,2]
[402663854,1768769432439,-287.6507494,0.00016274,2]
[402663855,1768769432448,-579.63385986,0.00016274,2]
[402663856,1768769432457,-568.07099453,0.00016274,2]
[402663857,1768769432467,-462.0,0.00016274,2]
[402663858,1768769432476,-500.0,0.00016274,2]
[402663859,1768769432485,-500.0,0.00016274,2]
[402663860,1768769432494,-500.0,0.00016274,2]
[402663861,1768769432503,-500.0,0.00016328,2]
[402663862,1768769432512,-520.48459727,0.00016329,2]
[402663863,1768769432521,-500.0,0.00016329,2]
[402663864,1768769432531,-500.0,0.00016329,2]
[402663865,1768769432540,-500.0,0.00016356,2]
[402663866,1768769432549,-500.0,0.00016356,2]
[402663867,1768769432559,-500.0,0.00016356,2]
[402663868,1768769432568,-500.0,0.00016383,2]
[402663869,1768769432578,-500.0,0.00016383,2]
[402663870,1768769432587,-500.0,0.00016384,2]
[402663871,1768769432597,-231.40398252,0.00016411,2]
[402663872,1768769432609,-1500.0,0.00016436,2]
[402663873,1768769432619,-500.0,0.00016438,2]
[402663874,1768769432628,-627.22945681,0.00016438,2]
[402663875,1768769432637,-588.52890843,0.00016438,2]
[402663876,1768769432649,-38.70054838,0.00016438,2]
[402663877,1768769432658,-226.0455978,0.00016438,2]
[402663878,1768769432671,-401.18385901,0.00016438,2]